[Event "ONJK-C 2019"]
[Site "Borne"]
[Date "2019.08.10"]
[Round "9.8"]
[White "Alvares, Thomas"]
[Black "Groen, Jari"]
[Result "0-1"]
[ECO "B33"]
[WhiteElo "1408"]
[BlackElo "1349"]
[Annotator "NA"]
[PlyCount "80"]
[EventDate "2019.08.05"]
[EventType "swiss"]
[EventCountry "NED"]
[SourceTitle "playchess.com"]
[Source "ChessBase"]
[SourceQuality "1"]
[TimeControl "5400+30"]

1. e4 {[%emt 0:00:00]} c5 {[%emt 0:00:00]} 2. Nf3 {[%emt 0:00:00]} Nc6 {[%emt 0:00:00]} 3. d4 {[%emt 0:00:00]} cxd4 {[%emt 0:00:00]} 4. Nxd4 {[%emt 0:00:00]} Nf6 {[%emt 0:00:00]} 5. Nc3 {[%emt 0:00:00]} e5 {[%emt 0:00:02]} 6. Nf3 {[%emt 0:01:44]} Bb4 {[%emt 0:00:39]} 7. Bd2 {[%emt 0:02:10]} d6 {[%emt 0:03:35]} 8. Bc4 {[%emt 0:02:13]} O-O {[%emt 0:02:49]} 9. Bg5 {[%emt 0:02:04]} Bxc3+ {[%emt 0:04:04]} 10. bxc3 {[%emt 0:00:17]} Qc7 {[%emt 0:01:12]} 11. Qd3 {[%emt 0:04:00]} a6 {[%emt 0:06:12]} 12. O-O {[%emt 0:01:43]} Be6 {[%emt 0:02:48]} 13. Bb3 {[%emt 0:00:52]} Rac8 {[%emt 0:00:39]} 14. Rfd1 {[%emt 0:01:58]} Rfd8 {[%emt 0:00:49]} 15. Rab1 {[%emt 0:02:47]} Na5 {[%emt 0:05:51]} 16. Bh4 {[%emt 0:03:02]} Rd7 {[%emt 0:08:04]} 17. Bxe6 {[%emt 0:05:29]} fxe6 {[%emt 0:00:32]} 18. Ng5 {[%emt 0:00:41]} Qxc3 {[%emt 0:02:37]} 19. Qe2 {[%emt 0:04:03]} Qxc2 {[%emt 0:03:14]} 20. Qf3 {[%emt 0:01:31]} Rc3 {[%emt 0:00:58]} 21. Qxc3 {[%emt 0:02:10]} Qxc3 {[%emt 0:02:06]} 22. Rbc1 {[%emt 0:00:12]} Qxc1 {[%emt 0:03:59]} 23. Rxc1 {[%emt 0:00:35]} Nc6 {[%emt 0:00:31]} 24. f3 {[%emt 0:01:24]} h6 {[%emt 0:01:32]} 25. Nh3 {[%emt 0:00:16]} d5 {[%emt 0:02:05]} 26. exd5 {[%emt 0:02:01]} exd5 {[%emt 0:01:18]} 27. Nf2 {[%emt 0:00:39]} g5 {[%emt 0:02:22]} 28. Bg3 {[%emt 0:00:08]} Nh5 {[%emt 0:00:47]} 29. Ng4 {[%emt 0:01:59]} Nxg3 {[%emt 0:03:00]} 30. Rxc6 {[%emt 0:01:53]} bxc6 {[%emt 0:00:59]} 31. Nf6+ {[%emt 0:00:10]} Kf7 {[%emt 0:00:43]} 32. Nxd7 {[%emt 0:00:08]} Ne2+ {[%emt 0:00:24]} 33. Kf2 {[%emt 0:00:10]} Ke6 {[%emt 0:02:03]} 34. Nc5+ {[%emt 0:00:46]} Kd6 {[%emt 0:00:46]} 35. Nxa6 {[%emt 0:00:24]} Nc3 {[%emt 0:00:26]} 36. a3 {[%emt 0:00:33]} c5 {[%emt 0:01:11]} 37. Ke3 {[%emt 0:00:33]} c4 {[%emt 0:01:26]} 38. Nb4 {[%emt 0:00:47]} d4+ {[%emt 0:01:14]} 39. Kf2 {[%emt 0:00:54]} Nd5 {[%emt 0:01:21]} 40. Nc2 {[%emt 0:00:32]} d3 {[%emt 0:01:57]} 0-1

[Event "ONJK-C 2019"]
[Site "Borne"]
[Date "2019.08.10"]
[Round "9.9"]
[White "Van Doren, Frodo"]
[Black "De Keukelaere, Wouter"]
[Result "1-0"]
[ECO "B13"]
[WhiteElo "1433"]
[BlackElo "1240"]
[Annotator "NA"]
[PlyCount "59"]
[EventDate "2019.08.05"]
[EventType "swiss"]
[EventCountry "NED"]
[SourceTitle "playchess.com"]
[Source "ChessBase"]
[SourceQuality "1"]
[TimeControl "5400+30"]

1. e4 {[%emt 0:00:00]} c6 {[%emt 0:00:26]} 2. d4 {[%emt 0:00:00]} d5 {[%emt 0:00:25]} 3. exd5 {[%emt 0:00:04]} cxd5 {[%emt 0:00:09]} 4. Bd3 {[%emt 0:00:07]} Nc6 {[%emt 0:00:06]} 5. c3 {[%emt 0:00:30]} Nf6 {[%emt 0:02:19]} 6. h3 {[%emt 0:06:38]} h6 {[%emt 0:12:27]} 7. Bf4 {[%emt 0:00:17]} e6 {[%emt 0:00:08]} 8. Nf3 {[%emt 0:04:26]} Bd6 {[%emt 0:01:57]} 9. Bxd6 {[%emt 0:01:34]} Qxd6 {[%emt 0:00:07]} 10. Nbd2 {[%emt 0:00:53]} O-O {[%emt 0:01:04]} 11. O-O {[%emt 0:00:42]} Re8 {[%emt 0:03:49]} 12. Re1 {[%emt 0:04:19]} Bd7 {[%emt 0:11:18]} 13. Ne5 {[%emt 0:01:05]} Rac8 {[%emt 0:03:55]} 14. f4 {[%emt 0:04:45]} Nh7 {[%emt 0:08:50]} 15. Qh5 {[%emt 0:04:37]} Nxe5 {[%emt 0:07:19]} 16. fxe5 {[%emt 0:02:10]} Qe7 {[%emt 0:00:13]} 17. Rf1 {[%emt 0:00:39]} Rf8 {[%emt 0:02:53]} 18. Rf2 {[%emt 0:09:47]} Qg5 {[%emt 0:05:02]} 19. Qxg5 {[%emt 0:11:02]} Nxg5 {[%emt 0:00:24]} 20. h4 {[%emt 0:00:15]} Nh7 {[%emt 0:00:05]} 21. Raf1 {[%emt 0:01:07]} Be8 {[%emt 0:02:17]} 22. c4 {[%emt 0:01:19]} Rd8 {[%emt 0:04:59]} 23. cxd5 {[%emt 0:03:33]} Rxd5 {[%emt 0:00:55]} 24. Nc4 {[%emt 0:16:38]} Bb5 25. Rc2 Rxd4 26. Rd1 Rxh4 27. Nd6 Bc6 28. Ba6 Rb4 29. Bd3 Rd4 30. Bxh7+ {Clock times not correct} 1-0

[Event "ONJK-C 2019"]
[Site "Borne"]
[Date "2019.08.10"]
[Round "9.10"]
[White "Yannopapas, Leontios"]
[Black "De Heij, Mees"]
[Result "1-0"]
[ECO "D00"]
[WhiteElo "1329"]
[BlackElo "1617"]
[Annotator "NA"]
[PlyCount "107"]
[EventDate "2019.08.05"]
[EventType "swiss"]
[EventCountry "NED"]
[SourceTitle "playchess.com"]
[Source "ChessBase"]
[SourceQuality "1"]
[TimeControl "5400+30"]

1. d4 {[%emt 0:00:00]} d5 {[%emt 0:00:00]} 2. Nc3 {[%emt 0:00:00]} Bf5 {[%emt 0:01:17]} 3. Bf4 {[%emt 0:00:14]} Nc6 {[%emt 0:01:00]} 4. f3 {[%emt 0:00:09]} Nf6 {[%emt 0:00:53]} 5. g4 {[%emt 0:00:13]} Bg6 {[%emt 0:05:57]} 6. h4 {[%emt 0:00:14]} h6 {[%emt 0:00:24]} 7. e3 {[%emt 0:00:12]} e6 {[%emt 0:00:09]} 8. a3 {[%emt 0:00:06]} a6 {[%emt 0:00:14]} 9. Bd3 {[%emt 0:00:28]} Bxd3 {[%emt 0:00:25]} 10. Qxd3 {[%emt 0:00:06]} Bd6 {[%emt 0:00:52]} 11. Nge2 {[%emt 0:00:10]} Qd7 {[%emt 0:15:28]} 12. O-O-O {[%emt 0:02:48]} O-O-O {[%emt 0:00:42]} 13. Bxd6 {[%emt 0:02:49]} Qxd6 {[%emt 0:00:31]} 14. Rhg1 {[%emt 0:01:39]} Nd7 {[%emt 0:11:28]} 15. Ng3 {[%emt 0:08:41]} Nb6 {[%emt 0:00:43]} 16. Kb1 {[%emt 0:01:54]} Kb8 {[%emt 0:01:58]} 17. e4 {[%emt 0:03:40]} dxe4 {[%emt 0:01:22]} 18. Qxe4 {[%emt 0:02:11]} Nxd4 {[%emt 0:00:54]} 19. Nce2 {[%emt 0:00:58]} c5 {[%emt 0:10:05]} 20. c3 {[%emt 0:00:26]} Nc4 {[%emt 0:00:45]} 21. cxd4 {[%emt 0:03:11]} Qb6 {[%emt 0:00:17]} 22. Qf4+ {[%emt 0:02:36]} Rd6 {[%emt 0:02:14]} 23. Qc1 {[%emt 0:01:49]} Qb5 {[%emt 0:14:17]} 24. dxc5 {[%emt 0:04:38]} Rc6 {[%emt 0:00:36]} 25. Nd4 {[%emt 0:02:26]} Qxc5 {[%emt 0:06:11]} 26. Nxc6+ {[%emt 0:00:39]} bxc6 {[%emt 0:00:25]} 27. Qc3 {[%emt 0:02:28]} Qb5 {[%emt 0:02:59]} 28. Qb4 {[%emt 0:00:42]} Qxb4 {[%emt 0:00:06]} 29. axb4 {[%emt 0:00:05]} Kc7 {[%emt 0:00:13]} 30. Rge1 {[%emt 0:00:17]} Rb8 {[%emt 0:00:15]} 31. Kc2 {[%emt 0:00:55]} Rxb4 {[%emt 0:00:25]} 32. Kc3 {[%emt 0:00:12]} a5 {[%emt 0:00:07]} 33. Rd4 {[%emt 0:00:45]} Nb6 {[%emt 0:01:37]} 34. Rxb4 {[%emt 0:00:27]} Nd5+ {[%emt 0:00:09]} 35. Kc4 {[%emt 0:00:18]} axb4 {[%emt 0:00:23]} 36. Ne4 {[%emt 0:00:50]} Nf4 {[%emt 0:00:51]} 37. g5 {[%emt 0:01:20]} hxg5 {[%emt 0:00:31]} 38. Nxg5 {[%emt 0:00:22]} Ng2 {[%emt 0:00:03]} 39. Rh1 {[%emt 0:01:50]} Ne3+ {[%emt 0:01:18]} 40. Kxb4 {[%emt 0:00:26]} Nd5+ {[%emt 0:00:03]} 41. Kc4 {[%emt 0:00:29]} Ne3+ {[%emt 0:00:14]} 42. Kd3 {[%emt 0:00:12]} Nd5 {[%emt 0:00:46]} 43. Nxf7 {[%emt 0:00:25]} Nf4+ {[%emt 0:00:16]} 44. Ke3 {[%emt 0:00:50]} Nd5+ {[%emt 0:00:03]} 45. Ke4 {[%emt 0:00:32]} Nf6+ {[%emt 0:00:08]} 46. Ke5 {[%emt 0:00:20]} Kd7 {[%emt 0:00:15]} 47. Ng5 {[%emt 0:00:32]} Ke7 {[%emt 0:00:13]} 48. Rd1 {[%emt 0:00:54]} Nd7+ {[%emt 0:00:34]} 49. Rxd7+ {[%emt 0:00:14]} Kxd7 {[%emt 0:00:03]} 50. Nxe6 {[%emt 0:00:07]} g6 {[%emt 0:00:08]} 51. Nf8+ {[%emt 0:00:09]} Ke7 {[%emt 0:00:04]} 52. Nxg6+ {[%emt 0:00:06]} Kf7 {[%emt 0:00:02]} 53. Nf4 {[%emt 0:00:13]} Kg7 {[%emt 0:00:03]} 54. Kd6 {[%emt 0:00:12]} 1-0

[Event "ONJK-C 2019"]
[Site "Borne"]
[Date "2019.08.10"]
[Round "9.11"]
[White "Molanus, Florian"]
[Black "Goudriaan, Rafael"]
[Result "0-1"]
[ECO "A51"]
[WhiteElo "1287"]
[BlackElo "1719"]
[Annotator "NA"]
[PlyCount "70"]
[EventDate "2019.08.05"]
[EventType "swiss"]
[EventCountry "NED"]
[SourceTitle "playchess.com"]
[Source "ChessBase"]
[SourceQuality "1"]
[TimeControl "5400+30"]

1. d4 {[%emt 0:00:00]} Nf6 {[%emt 0:00:00]} 2. c4 {[%emt 0:00:00]} e5 {[%emt 0:00:00]} 3. d5 {[%emt 0:01:00]} c6 {[%emt 0:00:20]} 4. Nc3 {[%emt 0:01:05]} Bb4 {[%emt 0:01:20]} 5. Qb3 {[%emt 0:04:10]} Qa5 {[%emt 0:01:03]} 6. Bd2 {[%emt 0:01:57]} cxd5 {[%emt 0:00:36]} 7. cxd5 {[%emt 0:00:42]} d6 {[%emt 0:00:36]} 8. e4 {[%emt 0:01:47]} Qb6 {[%emt 0:00:34]} 9. Be3 {[%emt 0:02:55]} Qa5 {[%emt 0:02:08]} 10. Bd2 {[%emt 0:00:38]} Nbd7 {[%emt 0:04:01]} 11. a3 {[%emt 0:07:28]} Bxc3 {[%emt 0:01:02]} 12. Bxc3 {[%emt 0:01:07]} Qb6 {[%emt 0:01:36]} 13. Qxb6 {[%emt 0:02:40]} axb6 {[%emt 0:00:20]} 14. f3 {[%emt 0:00:35]} Nc5 {[%emt 0:00:54]} 15. b4 {[%emt 0:11:39]} Na4 {[%emt 0:00:03]} 16. Bd2 {[%emt 0:00:12]} Bd7 {[%emt 0:00:06]} 17. Rc1 {[%emt 0:02:36]} O-O {[%emt 0:01:22]} 18. Bg5 {[%emt 0:02:24]} Rfc8 {[%emt 0:00:30]} 19. Rxc8+ {[%emt 0:02:04]} Rxc8 {[%emt 0:00:01]} 20. Bd2 {[%emt 0:01:03]} b5 {[%emt 0:00:35]} 21. Ne2 {[%emt 0:07:44]} Ne8 {[%emt 0:00:56]} 22. g4 {[%emt 0:12:41]} Nc7 {[%emt 0:01:04]} 23. Nc1 {[%emt 0:04:10]} Na8 {[%emt 0:00:17]} 24. Nb3 {[%emt 0:03:02]} N8b6 {[%emt 0:00:33]} 25. Na5 {[%emt 0:13:24]} Rc7 {[%emt 0:00:18]} 26. Kf2 {[%emt 0:03:54]} Rc2 {[%emt 0:00:43]} 27. Ke3 {[%emt 0:00:20]} Nb2 {[%emt 0:01:13]} 28. Nb3 {[%emt 0:02:31]} N6c4+ {[%emt 0:01:22]} 29. Bxc4 {[%emt 0:00:28]} Nxc4+ {[%emt 0:00:09]} 30. Kd3 {[%emt 0:00:06]} Rb2 {[%emt 0:00:41]} 31. Na5 {[%emt 0:01:30]} Rxd2+ {[%emt 0:00:22]} 32. Kc3 {[%emt 0:00:07]} Rf2 {[%emt 0:00:36]} 33. Nxc4 {[%emt 0:00:40]} bxc4 {[%emt 0:00:38]} 34. Kxc4 {[%emt 0:00:32]} Rxf3 {[%emt 0:00:41]} 35. b5 {[%emt 0:00:06]} Rxa3 {[%emt 0:00:04]} 0-1

[Event "ONJK-C 2019"]
[Site "Borne"]
[Date "2019.08.10"]
[Round "9.12"]
[White "Boeren, Jurriaan"]
[Black "Vleming, Annabel"]
[Result "1-0"]
[ECO "B27"]
[WhiteElo "1522"]
[BlackElo "1334"]
[Annotator "NA"]
[PlyCount "27"]
[EventDate "2019.08.05"]
[EventType "swiss"]
[EventCountry "NED"]
[SourceTitle "playchess.com"]
[Source "ChessBase"]
[SourceQuality "1"]
[TimeControl "5400+30"]

1. e4 {[%emt 0:06:16]} c5 {[%emt 0:00:00]} 2. Nf3 {[%emt 0:00:00]} g6 {[%emt 0:00:00]} 3. d4 {[%emt 0:00:00]} cxd4 {[%emt 0:00:00]} 4. Qxd4 {[%emt 0:00:00]} Nf6 {[%emt 0:00:02]} 5. e5 {[%emt 0:00:00]} Nc6 {[%emt 0:00:34]} 6. Qd3 {[%emt 0:00:00]} Ng4 {[%emt 0:02:01]} 7. Bf4 {[%emt 0:00:00]} Bg7 {[%emt 0:01:18]} 8. Qe4 {[%emt 0:00:00]} O-O {[%emt 0:03:31]} 9. h3 {[%emt 0:00:00]} Qa5+ {[%emt 0:01:24]} 10. Bd2 {[%emt 0:00:00]} f5 {[%emt 0:03:42]} 11. Qc4+ {[%emt 0:01:21]} d5 {[%emt 0:00:56]} 12. exd6+ {[%emt 0:00:00]} e6 {[%emt 0:01:43]} 13. Bxa5 {[%emt 0:00:00]} Nxa5 {[%emt 0:00:19]} 14. Qb5 {[%emt 0:00:28]} 1-0

[Event "ONJK-C 2019"]
[Site "Borne"]
[Date "2019.08.10"]
[Round "9.13"]
[White "Zoet, Jelle"]
[Black "Ang, Rufus"]
[Result "0-1"]
[ECO "C30"]
[WhiteElo "1042"]
[BlackElo "1498"]
[Annotator "NA"]
[PlyCount "40"]
[EventDate "2019.08.05"]
[EventType "swiss"]
[EventCountry "NED"]
[SourceTitle "playchess.com"]
[Source "ChessBase"]
[SourceQuality "1"]
[TimeControl "5400+30"]

1. e4 {[%emt 0:00:00]} e5 {[%emt 0:00:00]} 2. f4 {[%emt 0:00:00]} Nc6 {[%emt 0:00:00]} 3. Nf3 {[%emt 0:00:00]} d6 {[%emt 0:00:00]} 4. Bc4 {[%emt 0:00:12]} Nf6 {[%emt 0:00:09]} 5. Nc3 {[%emt 0:00:32]} Bg4 {[%emt 0:00:14]} 6. O-O {[%emt 0:00:36]} Qd7 {[%emt 0:00:42]} 7. Qe1 {[%emt 0:04:09]} Bxf3 {[%emt 0:02:55]} 8. Rxf3 {[%emt 0:00:17]} Nd4 {[%emt 0:00:08]} 9. Qd1 {[%emt 0:00:55]} Nxf3+ {[%emt 0:00:16]} 10. Qxf3 {[%emt 0:00:06]} Qg4 {[%emt 0:00:42]} 11. fxe5 {[%emt 0:08:46]} dxe5 {[%emt 0:01:10]} 12. Qe3 {[%emt 0:03:29]} Bd6 {[%emt 0:01:08]} 13. Be2 {[%emt 0:00:56]} Qh4 {[%emt 0:01:20]} 14. d3 {[%emt 0:06:03]} Qe1+ {[%emt 0:02:42]} 15. Bf1 {[%emt 0:01:55]} Qh4 {[%emt 0:02:46]} 16. Bd2 {[%emt 0:01:48]} Ng4 {[%emt 0:00:34]} 17. Qg3 {[%emt 0:01:22]} Bc5+ {[%emt 0:00:24]} 18. Be3 {[%emt 0:06:49]} Bxe3+ {[%emt 0:00:01]} 19. Kh1 Nf2+ 20. Kg1 {[%emt 0:01:58]} Nxe4+ {[%emt 0:01:29]} 0-1

[Event "ONJK-C 2019"]
[Site "Borne"]
[Date "2019.08.10"]
[Round "9.14"]
[White "Tiggelman, Vincent"]
[Black "Voorbergen, Milan"]
[Result "1-0"]
[ECO "C25"]
[WhiteElo "1358"]
[BlackElo "1410"]
[Annotator "NA"]
[PlyCount "58"]
[EventDate "2019.08.05"]
[EventType "swiss"]
[EventCountry "NED"]
[SourceTitle "playchess.com"]
[Source "ChessBase"]
[SourceQuality "1"]
[TimeControl "5400+30"]

1. e4 {[%emt 0:00:00]} e5 {[%emt 0:00:00]} 2. Nc3 {[%emt 0:00:00]} Bc5 {[%emt 0:00:00]} 3. Bc4 {[%emt 0:00:00]} Nc6 {[%emt 0:00:05]} 4. d3 {[%emt 0:00:00]} h6 {[%emt 0:00:15]} 5. Na4 {[%emt 0:00:08]} Be7 {[%emt 0:00:50]} 6. Nc3 {[%emt 0:00:23]} d6 {[%emt 0:00:11]} 7. Be3 {[%emt 0:00:57]} Nf6 {[%emt 0:00:21]} 8. f4 {[%emt 0:00:26]} Bg4 {[%emt 0:00:36]} 9. Nf3 {[%emt 0:00:59]} exf4 {[%emt 0:01:05]} 10. Bxf4 {[%emt 0:00:08]} Nd4 {[%emt 0:00:40]} 11. h3 {[%emt 0:03:16]} Nxf3+ {[%emt 0:00:24]} 12. gxf3 {[%emt 0:00:40]} Bh5 {[%emt 0:00:17]} 13. Qe2 {[%emt 0:02:04]} Qd7 {[%emt 0:01:25]} 14. Qg2 {[%emt 0:03:18]} Rg8 {[%emt 0:02:35]} 15. O-O-O {[%emt 0:05:11]} O-O-O {[%emt 0:01:07]} 16. Rde1 {[%emt 0:01:10]} Qc6 {[%emt 0:03:24]} 17. Qf2 {[%emt 0:00:42]} Nd7 {[%emt 0:03:42]} 18. Be3 {[%emt 0:02:42]} Nb6 {[%emt 0:03:21]} 19. Bb5 {[%emt 0:00:32]} Qc5 {[%emt 0:04:05]} 20. Bxc5 {[%emt 0:00:31]} dxc5 {[%emt 0:00:05]} 21. Nd5 {[%emt 0:01:38]} Bg5+ {[%emt 0:00:25]} 22. Kb1 {[%emt 0:00:41]} Nxd5 {[%emt 0:00:19]} 23. exd5 {[%emt 0:00:31]} Rxd5 {[%emt 0:00:11]} 24. f4 {[%emt 0:04:45]} Rf5 {[%emt 0:02:05]} 25. Re4 {[%emt 0:05:06]} Bg6 {[%emt 0:02:24]} 26. Rhe1 {[%emt 0:00:25]} c6 {[%emt 0:01:21]} 27. Bc4 {[%emt 0:00:16]} Rf6 {[%emt 0:00:24]} 28. Qg3 {[%emt 0:14:57]} Bxe4 {[%emt 0:02:42]} 29. fxg5 {[%emt 0:00:25]} Rd6 {[%emt 0:01:25]} 1-0